[Event "Early-Titled-Tuesday-Blitz-September-05-2023"]
[Site "Chess.com"]
[Date "2023.09.05"]
[Round "2"]
[White "Caterpiller35"]
[Black "MusicCityMaster"]
[Result "1-0"]
[WhiteElo "2524"]
[BlackElo "2332"]
[TimeControl "180+1"]
[EndTime "8:15:35 PDT"]
[Termination "Caterpiller35 won by resignation"]

1. d4 {[%clk 0:03:00]} 1... Nf6 {[%clk 0:02:59.3]} 2. Bg5 {[%clk 0:02:58.4]}
2... c5 {[%clk 0:02:58.4]} 3. d5 {[%clk 0:02:58.3]} 3... d6 {[%clk 0:02:58]} 4.
Nc3 {[%clk 0:02:58.3]} 4... Nbd7 {[%clk 0:02:53.2]} 5. e4 {[%clk 0:02:58.4]}
5... a6 {[%clk 0:02:53]} 6. a4 {[%clk 0:02:58.3]} 6... g6 {[%clk 0:02:50.2]} 7.
Nf3 {[%clk 0:02:57.4]} 7... Bg7 {[%clk 0:02:50.6]} 8. Be2 {[%clk 0:02:55.6]}
8... O-O {[%clk 0:02:50.7]} 9. O-O {[%clk 0:02:55.3]} 9... Rb8 {[%clk
0:02:49.8]} 10. Re1 {[%clk 0:02:52.5]} 10... Ng4 {[%clk 0:02:45.4]} 11. h3
{[%clk 0:02:50.7]} 11... Nge5 {[%clk 0:02:44.7]} 12. Nxe5 {[%clk 0:02:50.8]}
12... Nxe5 {[%clk 0:02:45.6]} 13. Qd2 {[%clk 0:02:49.4]} 13... f5 {[%clk
0:02:38.1]} 14. f4 {[%clk 0:02:43]} 14... Nf7 {[%clk 0:02:37.8]} 15. Bh4 {[%clk
0:02:42.9]} 15... fxe4 {[%clk 0:02:34.1]} 16. Nxe4 {[%clk 0:02:30.3]} 16... Bxb2
{[%clk 0:02:32.7]} 17. Rab1 {[%clk 0:02:25.2]} 17... Bd4+ {[%clk 0:02:32.5]} 18.
Kh1 {[%clk 0:02:24]} 18... Bd7 {[%clk 0:02:17.7]} 19. a5 {[%clk 0:02:22.3]}
19... Bg7 {[%clk 0:02:10.5]} 20. Rb6 {[%clk 0:02:18.9]} 20... Re8 {[%clk
0:02:00.5]} 21. Nxd6 {[%clk 0:02:07.3]} 21... Nxd6 {[%clk 0:01:58]} 22. Rxd6
{[%clk 0:02:07.2]} 22... Qc8 {[%clk 0:01:56.2]} 23. Rb6 {[%clk 0:02:00.4]} 23...
Bxh3 {[%clk 0:01:56.1]} 24. Bc4 {[%clk 0:02:00.5]} 24... Kh8 {[%clk 0:01:38.1]}
25. Bxe7 {[%clk 0:01:58.9]} 25... Bf5 {[%clk 0:01:27.8]} 26. d6 {[%clk
0:01:58.7]} 26... Qd7 {[%clk 0:01:20.4]} 27. Re5 {[%clk 0:01:58.3]} 27... Qa4
{[%clk 0:01:16.8]} 28. Rxf5 {[%clk 0:01:51.6]} 28... Qa1+ {[%clk 0:01:12.3]} 29.
Kh2 {[%clk 0:01:50]} 29... gxf5 {[%clk 0:01:11.7]} 30. d7 {[%clk 0:01:48.1]}
30... Bd4 {[%clk 0:01:03.5]} 31. dxe8=Q+ {[%clk 0:01:45.6]} 31... Rxe8 {[%clk
0:01:04.4]} 32. Qxd4+ {[%clk 0:01:35.5]} 32... Qxd4 {[%clk 0:01:01.1]} 33. Bf6+
{[%clk 0:01:35.6]} 33... Qxf6 {[%clk 0:01:01.3]} 34. Rxf6 {[%clk 0:01:36.5]}
34... Re4 {[%clk 0:00:56.4]} 35. Bd3 {[%clk 0:01:34.4]} 35... Rxf4 {[%clk
0:00:55.9]} 36. Rxf5 {[%clk 0:01:34.8]} 36... Ra4 {[%clk 0:00:50.5]} 37. Rxc5
{[%clk 0:01:34.6]} 37... Kg7 {[%clk 0:00:50.1]} 38. Rc7+ {[%clk 0:01:34.5]}
38... Kf6 {[%clk 0:00:50.6]} 39. Rxb7 {[%clk 0:01:33.7]} 39... Rxa5 {[%clk
0:00:51]} 40. Rxh7 {[%clk 0:01:34]} 40... Ra1 {[%clk 0:00:49.5]} 41. Rh6+ {[%clk
0:01:34.1]} 41... Kg5 {[%clk 0:00:48.4]} 42. Rxa6 {[%clk 0:01:35]} 1-0

[Event "Early-Titled-Tuesday-Blitz-September-05-2023"]
[Site "Chess.com"]
[Date "2023.09.05"]
[Round "2"]
[White "isla88"]
[Black "yoelpolanco"]
[Result "1-0"]
[WhiteElo "2480"]
[BlackElo "2229"]
[TimeControl "180+1"]
[EndTime "8:15:37 PDT"]
[Termination "isla88 won by resignation"]

1. d4 {[%clk 0:03:00.9]} 1... Nf6 {[%clk 0:01:12.2]} 2. Nf3 {[%clk 0:02:58.8]}
2... e6 {[%clk 0:01:12.1]} 3. Bf4 {[%clk 0:02:59]} 3... c5 {[%clk 0:01:12.2]} 4.
c3 {[%clk 0:02:57.8]} 4... Be7 {[%clk 0:01:12.8]} 5. e3 {[%clk 0:02:57.4]} 5...
O-O {[%clk 0:01:13.1]} 6. Nbd2 {[%clk 0:02:57.7]} 6... d6 {[%clk 0:01:13.7]} 7.
Bd3 {[%clk 0:02:57.9]} 7... b6 {[%clk 0:01:14.2]} 8. O-O {[%clk 0:02:57.2]} 8...
Nh5 {[%clk 0:01:10.2]} 9. Bg3 {[%clk 0:02:55.7]} 9... Nxg3 {[%clk 0:01:10]} 10.
hxg3 {[%clk 0:02:55.7]} 10... Bb7 {[%clk 0:01:10.6]} 11. e4 {[%clk 0:02:54]}
11... Nd7 {[%clk 0:01:10.1]} 12. Qe2 {[%clk 0:02:53.6]} 12... g6 {[%clk
0:01:07.6]} 13. Rad1 {[%clk 0:02:50.9]} 13... Qc7 {[%clk 0:01:07.2]} 14. Rc1
{[%clk 0:02:49.5]} 14... Rfe8 {[%clk 0:01:05.3]} 15. Rfd1 {[%clk 0:02:45.5]}
15... Bf8 {[%clk 0:01:05.5]} 16. Nf1 {[%clk 0:02:44]} 16... a6 {[%clk
0:01:05.2]} 17. Ne3 {[%clk 0:02:43.3]} 17... b5 {[%clk 0:01:04.2]} 18. g4 {[%clk
0:02:37.9]} 18... c4 {[%clk 0:00:59.2]} 19. Bb1 {[%clk 0:02:37.6]} 19... Bg7
{[%clk 0:00:57.2]} 20. g5 {[%clk 0:02:36.2]} 20... a5 {[%clk 0:00:57.2]} 21. Ng4
{[%clk 0:02:36]} 21... Qd8 {[%clk 0:00:56.5]} 22. Qe3 {[%clk 0:02:28.7]} 22...
f6 {[%clk 0:00:56.2]} 23. gxf6 {[%clk 0:02:18.4]} 23... Nxf6 {[%clk 0:00:56.2]}
24. Nxf6+ {[%clk 0:02:16]} 24... Bxf6 {[%clk 0:00:54.4]} 25. e5 {[%clk
0:02:13.7]} 25... Bxf3 {[%clk 0:00:53.7]} 26. exf6 {[%clk 0:02:12.1]} 26... Bd5
{[%clk 0:00:51.5]} 27. Qg5 {[%clk 0:01:57.1]} 27... Qd7 {[%clk 0:00:49.4]} 28.
Bxg6 {[%clk 0:01:38.4]} 28... hxg6 {[%clk 0:00:48.2]} 29. Qxg6+ {[%clk
0:01:39.3]} 29... Kh8 {[%clk 0:00:48.6]} 30. f7 {[%clk 0:01:36.7]} 30... Be4
{[%clk 0:00:28.3]} 31. Qh6+ {[%clk 0:01:26.8]} 1-0

[Event "Early-Titled-Tuesday-Blitz-September-05-2023"]
[Site "Chess.com"]
[Date "2023.09.05"]
[Round "2"]
[White "starplatinum2030"]
[Black "sokidze"]
[Result "0-1"]
[WhiteElo "2415"]
[BlackElo "2751"]
[TimeControl "180+1"]
[EndTime "8:15:38 PDT"]
[Termination "sokidze won by resignation"]

1. Nf3 {[%clk 0:03:00.9]} 1... d5 {[%clk 0:02:57.8]} 2. g3 {[%clk 0:03:01]} 2...
c5 {[%clk 0:02:58]} 3. Bg2 {[%clk 0:03:01.3]} 3... Nc6 {[%clk 0:02:58.3]} 4. c4
{[%clk 0:02:59.5]} 4... d4 {[%clk 0:02:55.8]} 5. d3 {[%clk 0:02:59.4]} 5... e5
{[%clk 0:02:55.7]} 6. O-O {[%clk 0:03:00.3]} 6... Nf6 {[%clk 0:02:48.6]} 7. Na3
{[%clk 0:03:00.3]} 7... Be7 {[%clk 0:02:45.9]} 8. Nc2 {[%clk 0:03:00.3]} 8...
O-O {[%clk 0:02:46]} 9. Rb1 {[%clk 0:03:00.3]} 9... h6 {[%clk 0:02:44.5]} 10. a3
{[%clk 0:03:00]} 10... a5 {[%clk 0:02:44.8]} 11. e3 {[%clk 0:02:59.8]} 11...
dxe3 {[%clk 0:02:40.3]} 12. fxe3 {[%clk 0:02:51.9]} 12... e4 {[%clk 0:02:36.8]}
13. dxe4 {[%clk 0:02:52.1]} 13... Qxd1 {[%clk 0:02:33.2]} 14. Rxd1 {[%clk
0:02:53]} 14... Nxe4 {[%clk 0:02:33.7]} 15. Nd2 {[%clk 0:02:45.8]} 15... Bg4
{[%clk 0:02:27.1]} 16. Re1 {[%clk 0:02:42.2]} 16... Nd6 {[%clk 0:02:06.6]} 17.
e4 {[%clk 0:02:31.5]} 17... Ne5 {[%clk 0:02:05.8]} 18. Ne3 {[%clk 0:02:31.9]}
18... Nd3 {[%clk 0:01:55.2]} 19. Nxg4 {[%clk 0:02:20.4]} 19... Nxe1 {[%clk
0:01:55.5]} 20. e5 {[%clk 0:02:20.3]} 20... Nf5 {[%clk 0:01:55.1]} 21. Bxb7
{[%clk 0:02:19.8]} 21... Rab8 {[%clk 0:01:54]} 22. Bd5 {[%clk 0:02:18.9]} 22...
Nd3 {[%clk 0:01:49.7]} 23. b3 {[%clk 0:02:07.6]} 23... Nxc1 {[%clk 0:01:37.7]}
24. Rxc1 {[%clk 0:02:07.6]} 24... Bg5 {[%clk 0:01:38.4]} 25. Rd1 {[%clk
0:02:03.7]} 25... h5 {[%clk 0:01:34.4]} 26. Ne4 {[%clk 0:01:43.2]} 26... Be7
{[%clk 0:01:12.7]} 27. Ngf2 {[%clk 0:01:37.1]} 27... Rxb3 {[%clk 0:01:13]} 28.
a4 {[%clk 0:01:36.2]} 28... Ne3 {[%clk 0:01:10.6]} 29. Re1 {[%clk 0:01:34.7]}
29... Rd8 {[%clk 0:01:06.8]} 30. Bc6 {[%clk 0:01:29.4]} 30... Nxc4 {[%clk
0:01:04.4]} 31. e6 {[%clk 0:01:27.7]} 31... Ne5 {[%clk 0:00:54.1]} 32. exf7+
{[%clk 0:01:26.4]} 32... Kf8 {[%clk 0:00:51.8]} 33. Be8 {[%clk 0:01:21.8]} 33...
Nf3+ {[%clk 0:00:50.6]} 34. Kf1 {[%clk 0:01:22.2]} 34... Nxe1 {[%clk 0:00:50.4]}
35. Kxe1 {[%clk 0:01:23.1]} 35... Rxe8 {[%clk 0:00:48.1]} 0-1

[Event "Early-Titled-Tuesday-Blitz-September-05-2023"]
[Site "Chess.com"]
[Date "2023.09.05"]
[Round "2"]
[White "Abund"]
[Black "hsd2016"]
[Result "1-0"]
[WhiteElo "2713"]
[BlackElo "2273"]
[TimeControl "180+1"]
[EndTime "8:15:39 PDT"]
[Termination "Abund won by checkmate"]

1. e4 {[%clk 0:03:00.9]} 1... c5 {[%clk 0:02:48.3]} 2. Nf3 {[%clk 0:02:49.8]}
2... e6 {[%clk 0:02:48]} 3. c3 {[%clk 0:02:50.1]} 3... d5 {[%clk 0:02:47.7]} 4.
exd5 {[%clk 0:02:50.6]} 4... exd5 {[%clk 0:02:48.6]} 5. d4 {[%clk 0:02:51.2]}
5... cxd4 {[%clk 0:02:48.7]} 6. Nxd4 {[%clk 0:02:51.1]} 6... Nc6 {[%clk
0:02:49.2]} 7. Be3 {[%clk 0:02:46.9]} 7... Nf6 {[%clk 0:02:43.9]} 8. Be2 {[%clk
0:02:39.7]} 8... Be7 {[%clk 0:02:38.5]} 9. Nd2 {[%clk 0:02:39.9]} 9... O-O
{[%clk 0:02:37.4]} 10. O-O {[%clk 0:02:40.3]} 10... Re8 {[%clk 0:02:30.5]} 11.
Re1 {[%clk 0:02:40.2]} 11... Bd7 {[%clk 0:02:20.4]} 12. h3 {[%clk 0:02:34.9]}
12... Rc8 {[%clk 0:02:19.6]} 13. N2b3 {[%clk 0:02:25.7]} 13... b6 {[%clk
0:02:13.2]} 14. Ba6 {[%clk 0:02:24.8]} 14... Rb8 {[%clk 0:02:06.8]} 15. Bf4
{[%clk 0:02:23.3]} 15... Nxd4 {[%clk 0:01:53.9]} 16. Nxd4 {[%clk 0:02:24.2]}
16... Ne4 {[%clk 0:01:46.3]} 17. Bxb8 {[%clk 0:02:09.4]} 17... Qxb8 {[%clk
0:01:47.2]} 18. Bb5 {[%clk 0:02:03]} 18... Bxb5 {[%clk 0:01:41.1]} 19. Nxb5
{[%clk 0:02:03.9]} 19... Qf4 {[%clk 0:01:40.7]} 20. Qf3 {[%clk 0:01:55]} 20...
Qg5 {[%clk 0:01:29]} 21. Nc7 {[%clk 0:01:50.2]} 21... Rd8 {[%clk 0:00:14.8]} 22.
Nxd5 {[%clk 0:01:48.4]} 22... Rxd5 {[%clk 0:00:14.2]} 23. Qxe4 {[%clk
0:01:44.8]} 23... Bf8 {[%clk 0:00:11.3]} 24. Rad1 {[%clk 0:01:43.2]} 24... Rf5
{[%clk 0:00:10.7]} 25. Qa8 {[%clk 0:01:35.1]} 25... Qf4 {[%clk 0:00:08.7]} 26.
Qxf8+ {[%clk 0:01:34.7]} 26... Kxf8 {[%clk 0:00:09.1]} 27. Rd8# {[%clk
0:01:35.6]} 1-0

[Event "Early-Titled-Tuesday-Blitz-September-05-2023"]
[Site "Chess.com"]
[Date "2023.09.05"]
[Round "2"]
[White "Dixit_Nikhil"]
[Black "AlexandraSamaganova"]
[Result "1-0"]
[WhiteElo "2493"]
[BlackElo "2274"]
[TimeControl "180+1"]
[EndTime "8:15:42 PDT"]
[Termination "Dixit_Nikhil won by resignation"]

1. e4 {[%clk 0:03:00.9]} 1... c5 {[%clk 0:02:54.6]} 2. Nf3 {[%clk 0:03:00.2]}
2... e6 {[%clk 0:02:54.5]} 3. d4 {[%clk 0:02:55.3]} 3... cxd4 {[%clk 0:02:54.3]}
4. Nxd4 {[%clk 0:02:56.1]} 4... a6 {[%clk 0:02:54.4]} 5. c4 {[%clk 0:02:55.6]}
5... Qc7 {[%clk 0:02:54.6]} 6. Nc3 {[%clk 0:02:55.3]} 6... Nf6 {[%clk
0:02:54.5]} 7. Nc2 {[%clk 0:02:51.9]} 7... b6 {[%clk 0:02:54.2]} 8. f4 {[%clk
0:02:37.4]} 8... d6 {[%clk 0:02:51.5]} 9. Bd3 {[%clk 0:02:23.9]} 9... Bb7 {[%clk
0:02:48.1]} 10. Qe2 {[%clk 0:02:24.1]} 10... Nbd7 {[%clk 0:02:47.4]} 11. Bd2
{[%clk 0:02:16]} 11... Be7 {[%clk 0:02:36.8]} 12. O-O {[%clk 0:01:58.4]} 12...
O-O {[%clk 0:02:33.7]} 13. Rac1 {[%clk 0:01:57.9]} 13... Rac8 {[%clk 0:02:32.8]}
14. Nd4 {[%clk 0:01:56.5]} 14... Qb8 {[%clk 0:02:29.3]} 15. b4 {[%clk
0:01:55.2]} 15... Rfe8 {[%clk 0:02:21.8]} 16. a3 {[%clk 0:01:54.1]} 16... Bd8
{[%clk 0:02:16.3]} 17. Be3 {[%clk 0:01:49.6]} 17... Bc7 {[%clk 0:02:10.4]} 18.
Nf3 {[%clk 0:01:33]} 18... Qa8 {[%clk 0:02:02.7]} 19. Bd2 {[%clk 0:01:26.6]}
19... d5 {[%clk 0:01:51.8]} 20. cxd5 {[%clk 0:01:05.5]} 20... exd5 {[%clk
0:01:49.6]} 21. e5 {[%clk 0:01:05.9]} 21... Ne4 {[%clk 0:01:44.7]} 22. Bxe4
{[%clk 0:01:04.3]} 22... dxe4 {[%clk 0:01:44.5]} 23. Ng5 {[%clk 0:01:05.2]}
23... f5 {[%clk 0:01:19.9]} 24. Qc4+ {[%clk 0:00:58.5]} 24... Bd5 {[%clk
0:01:01.5]} 25. Nxd5 {[%clk 0:00:47.9]} 1-0

[Event "Early-Titled-Tuesday-Blitz-September-05-2023"]
[Site "Chess.com"]
[Date "2023.09.05"]
[Round "2"]
[White "Langua_Chess"]
[Black "PeshkaCh"]
[Result "0-1"]
[WhiteElo "2481"]
[BlackElo "2790"]
[TimeControl "180+1"]
[EndTime "8:15:44 PDT"]
[Termination "PeshkaCh won by resignation"]

1. d4 {[%clk 0:03:00.9]} 1... Nf6 {[%clk 0:02:58.8]} 2. c4 {[%clk 0:02:58.2]}
2... e6 {[%clk 0:02:58.4]} 3. Nc3 {[%clk 0:02:53.5]} 3... d5 {[%clk 0:02:58.7]}
4. cxd5 {[%clk 0:02:53.1]} 4... exd5 {[%clk 0:02:58.9]} 5. Bg5 {[%clk
0:02:53.8]} 5... Be7 {[%clk 0:02:59.5]} 6. e3 {[%clk 0:02:54.1]} 6... O-O {[%clk
0:02:59.9]} 7. Bd3 {[%clk 0:02:54.6]} 7... h6 {[%clk 0:02:59.3]} 8. Bh4 {[%clk
0:02:54.5]} 8... c6 {[%clk 0:03:00]} 9. Nge2 {[%clk 0:02:54.6]} 9... Re8 {[%clk
0:02:58.9]} 10. O-O {[%clk 0:02:54.9]} 10... Nh5 {[%clk 0:02:56.3]} 11. Bxe7
{[%clk 0:02:04.5]} 11... Qxe7 {[%clk 0:02:57.2]} 12. Qc2 {[%clk 0:02:04.8]}
12... a5 {[%clk 0:02:56.2]} 13. Rae1 {[%clk 0:01:47.7]} 13... Na6 {[%clk
0:02:55.2]} 14. a3 {[%clk 0:01:46.6]} 14... Nc7 {[%clk 0:02:54.4]} 15. Na4
{[%clk 0:01:47.1]} 15... Ne6 {[%clk 0:02:49.1]} 16. Nb6 {[%clk 0:01:43.1]} 16...
Rb8 {[%clk 0:02:49.2]} 17. Bf5 {[%clk 0:01:39.5]} 17... Qc7 {[%clk 0:02:47.1]}
18. Nxc8 {[%clk 0:01:34.7]} 18... Rbxc8 {[%clk 0:02:48]} 19. b4 {[%clk
0:01:31.9]} 19... axb4 {[%clk 0:02:46.9]} 20. axb4 {[%clk 0:01:32.8]} 20... Qd6
{[%clk 0:02:40.7]} 21. Qb3 {[%clk 0:01:28.4]} 21... g6 {[%clk 0:02:36.8]} 22.
Bh3 {[%clk 0:01:25.2]} 22... Ra8 {[%clk 0:02:33.9]} 23. Ra1 {[%clk 0:01:22.2]}
23... Ng5 {[%clk 0:02:33.8]} 24. Bg4 {[%clk 0:00:59.4]} 24... Nf6 {[%clk
0:02:33.2]} 25. Bf3 {[%clk 0:01:00.1]} 25... Nxf3+ {[%clk 0:02:21.3]} 26. gxf3
{[%clk 0:01:00.4]} 26... Qe6 {[%clk 0:02:21.7]} 27. b5 {[%clk 0:00:53.9]} 27...
Qh3 {[%clk 0:02:19.3]} 28. Ng3 {[%clk 0:00:46.2]} 28... h5 {[%clk 0:02:14]} 29.
bxc6 {[%clk 0:00:45.7]} 29... bxc6 {[%clk 0:02:14.9]} 30. Rxa8 {[%clk
0:00:38.3]} 30... Rxa8 {[%clk 0:02:15.8]} 31. Qb7 {[%clk 0:00:38.3]} 31... Rc8
{[%clk 0:02:15.4]} 32. Ra1 {[%clk 0:00:29.4]} 32... h4 {[%clk 0:02:14.8]} 33.
Ra8 {[%clk 0:00:30.1]} 33... Rxa8 {[%clk 0:02:10.5]} 34. Qxa8+ {[%clk 0:00:31]}
34... Kg7 {[%clk 0:02:11]} 35. Nf1 {[%clk 0:00:20.1]} 35... Qxf3 {[%clk
0:02:11.3]} 36. Qb8 {[%clk 0:00:04.5]} 36... g5 {[%clk 0:02:08.2]} 37. Qe5
{[%clk 0:00:04.8]} 37... Kg6 {[%clk 0:02:08.6]} 38. Nd2 {[%clk 0:00:03.8]} 38...
Qg4+ {[%clk 0:02:06.2]} 39. Kf1 {[%clk 0:00:04.2]} 39... Qd1+ {[%clk 0:02:06.3]}
0-1

[Event "Early-Titled-Tuesday-Blitz-September-05-2023"]
[Site "Chess.com"]
[Date "2023.09.05"]
[Round "2"]
[White "Zarinur"]
[Black "Al_Shima"]
[Result "1-0"]
[WhiteElo "2528"]
[BlackElo "2333"]
[TimeControl "180+1"]
[EndTime "8:15:46 PDT"]
[Termination "Zarinur won by resignation"]

1. e4 {[%clk 0:03:00.9]} 1... e5 {[%clk 0:02:56.8]} 2. Nf3 {[%clk 0:03:00.5]}
2... Nf6 {[%clk 0:02:56.9]} 3. Nc3 {[%clk 0:03:00.4]} 3... Nc6 {[%clk
0:02:56.4]} 4. Bb5 {[%clk 0:03:01]} 4... d6 {[%clk 0:02:54.9]} 5. d4 {[%clk
0:03:00.6]} 5... exd4 {[%clk 0:02:54.8]} 6. Nxd4 {[%clk 0:03:01.5]} 6... Bd7
{[%clk 0:02:55.2]} 7. Bxc6 {[%clk 0:03:02]} 7... bxc6 {[%clk 0:02:55.5]} 8. O-O
{[%clk 0:03:02.3]} 8... c5 {[%clk 0:02:55.9]} 9. Nf3 {[%clk 0:02:59.6]} 9... Be7
{[%clk 0:02:55.9]} 10. e5 {[%clk 0:02:59]} 10... Ng4 {[%clk 0:02:46.2]} 11. Bf4
{[%clk 0:02:51.8]} 11... O-O {[%clk 0:02:43.7]} 12. exd6 {[%clk 0:02:48]} 12...
cxd6 {[%clk 0:02:41.1]} 13. Bxd6 {[%clk 0:02:48.9]} 13... Bc6 {[%clk 0:02:32.6]}
14. Bxe7 {[%clk 0:02:44.1]} 14... Qxe7 {[%clk 0:02:32.2]} 15. h3 {[%clk
0:02:43.2]} 15... Ne5 {[%clk 0:02:26.7]} 16. Nxe5 {[%clk 0:02:37.1]} 16... Qxe5
{[%clk 0:02:26.3]} 17. Re1 {[%clk 0:02:36.7]} 17... Qg5 {[%clk 0:02:26]} 18. Qg4
{[%clk 0:02:34.9]} 18... Qxg4 {[%clk 0:02:26.2]} 19. hxg4 {[%clk 0:02:35.8]}
19... Rab8 {[%clk 0:02:26.3]} 20. b3 {[%clk 0:02:35.4]} 20... Rfe8 {[%clk
0:02:23.2]} 21. f3 {[%clk 0:02:33.5]} 21... f6 {[%clk 0:02:22.4]} 22. Kf2 {[%clk
0:02:33.2]} 22... Kf7 {[%clk 0:02:22.3]} 23. Rad1 {[%clk 0:02:29.6]} 23... Red8
{[%clk 0:02:21.2]} 24. Nb1 {[%clk 0:02:27.9]} 24... h6 {[%clk 0:02:14.4]} 25.
Na3 {[%clk 0:02:27.7]} 25... Bd5 {[%clk 0:02:11.4]} 26. Rd2 {[%clk 0:02:22.5]}
26... Be6 {[%clk 0:02:08.9]} 27. Rde2 {[%clk 0:02:19.6]} 27... Rb6 {[%clk
0:02:06.9]} 28. c4 {[%clk 0:02:11.2]} 28... a6 {[%clk 0:01:51.1]} 29. Nb1 {[%clk
0:02:10.6]} 29... Rd3 {[%clk 0:01:49.5]} 30. Re3 {[%clk 0:02:08]} 30... Rxe3
{[%clk 0:01:48.8]} 31. Kxe3 {[%clk 0:02:07.4]} 31... a5 {[%clk 0:01:48.5]} 32.
Nc3 {[%clk 0:02:07.5]} 32... Rd6 {[%clk 0:01:46.1]} 33. Rd1 {[%clk 0:02:06.3]}
33... Rxd1 {[%clk 0:01:45.8]} 34. Nxd1 {[%clk 0:02:05.9]} 34... a4 {[%clk
0:01:46.4]} 35. Nc3 {[%clk 0:02:05]} 35... axb3 {[%clk 0:01:45.4]} 36. axb3
{[%clk 0:02:05.9]} 36... Ke7 {[%clk 0:01:38.3]} 37. Ne4 {[%clk 0:02:01.6]} 37...
Bc8 {[%clk 0:01:30.5]} 38. Nxc5 {[%clk 0:02:00.1]} 38... Kd6 {[%clk 0:01:31.4]}
39. Ne4+ {[%clk 0:01:57.8]} 39... Kc6 {[%clk 0:01:31.2]} 40. Kd4 {[%clk
0:01:58]} 40... f5 {[%clk 0:01:29.4]} 41. gxf5 {[%clk 0:01:57]} 41... Bxf5
{[%clk 0:01:30.3]} 42. b4 {[%clk 0:01:57.1]} 42... Be6 {[%clk 0:01:25.9]} 43.
Kc3 {[%clk 0:01:52.1]} 43... Bf7 {[%clk 0:01:20.9]} 44. b5+ {[%clk 0:01:47.2]}
44... Kb6 {[%clk 0:01:20.6]} 45. Kb4 {[%clk 0:01:46.8]} 45... Kc7 {[%clk
0:01:20.2]} 46. c5 {[%clk 0:01:45.9]} 46... Bd5 {[%clk 0:01:18.8]} 47. b6+
{[%clk 0:01:44.3]} 47... Kc6 {[%clk 0:01:18.5]} 48. Nc3 {[%clk 0:01:44]} 48...
Be6 {[%clk 0:01:15.1]} 49. Ne2 {[%clk 0:01:44.2]} 49... Bc8 {[%clk 0:01:13]} 50.
Nd4+ {[%clk 0:01:43.3]} 50... Kd5 {[%clk 0:01:13.7]} 51. c6 {[%clk 0:01:41.7]}
51... Kxd4 {[%clk 0:01:09.5]} 52. b7 {[%clk 0:01:41.9]} 1-0

[Event "Early-Titled-Tuesday-Blitz-September-05-2023"]
[Site "Chess.com"]
[Date "2023.09.05"]
[Round "2"]
[White "lamomiajunior"]
[Black "kasun_bole"]
[Result "1-0"]
[WhiteElo "2687"]
[BlackElo "2383"]
[TimeControl "180+1"]
[EndTime "8:15:47 PDT"]
[Termination "lamomiajunior won by resignation"]

1. d4 {[%clk 0:03:00.9]} 1... Nf6 {[%clk 0:02:56]} 2. c4 {[%clk 0:03:00.8]} 2...
e6 {[%clk 0:02:56.1]} 3. Nc3 {[%clk 0:03:01.1]} 3... Bb4 {[%clk 0:02:55.6]} 4.
e3 {[%clk 0:03:01]} 4... O-O {[%clk 0:02:53.1]} 5. Bd2 {[%clk 0:03:01.2]} 5...
d6 {[%clk 0:02:52]} 6. a3 {[%clk 0:02:59.6]} 6... Bxc3 {[%clk 0:02:51.9]} 7.
Bxc3 {[%clk 0:03:00.5]} 7... Nbd7 {[%clk 0:02:52.4]} 8. Nf3 {[%clk 0:02:57.1]}
8... Qe7 {[%clk 0:02:52.4]} 9. Be2 {[%clk 0:02:57]} 9... Re8 {[%clk 0:02:47.9]}
10. O-O {[%clk 0:02:57.6]} 10... e5 {[%clk 0:02:48]} 11. b4 {[%clk 0:02:57.1]}
11... exd4 {[%clk 0:02:37.8]} 12. Nxd4 {[%clk 0:02:52.2]} 12... Ne5 {[%clk
0:02:38]} 13. Bb2 {[%clk 0:02:51.7]} 13... Bd7 {[%clk 0:02:21.5]} 14. Qc2 {[%clk
0:02:45.5]} 14... Ng6 {[%clk 0:02:10.7]} 15. Rad1 {[%clk 0:02:41.7]} 15... Bg4
{[%clk 0:02:03.5]} 16. Bxg4 {[%clk 0:02:10.4]} 16... Nxg4 {[%clk 0:02:03.3]} 17.
Nf5 {[%clk 0:02:04.1]} 17... Qg5 {[%clk 0:01:56.2]} 18. Nxg7 {[%clk 0:01:50.9]}
18... Nh4 {[%clk 0:01:26.4]} 19. Nxe8 {[%clk 0:01:28.8]} 19... Ne5 {[%clk
0:00:20.3]} 20. f4 {[%clk 0:01:25.8]} 20... Nef3+ {[%clk 0:00:17.8]} 21. Kh1
{[%clk 0:01:19.4]} 21... Qg6 {[%clk 0:00:11.8]} 22. Qxg6+ {[%clk 0:01:18]} 1-0

[Event "Early-Titled-Tuesday-Blitz-September-05-2023"]
[Site "Chess.com"]
[Date "2023.09.05"]
[Round "2"]
[White "Witik"]
[Black "Firouzja2003"]
[Result "0-1"]
[WhiteElo "2683"]
[BlackElo "3129"]
[TimeControl "180+1"]
[EndTime "8:16:01 PDT"]
[Termination "Firouzja2003 won by checkmate"]

1. d4 {[%clk 0:02:59.5]} 1... Nf6 {[%clk 0:02:58.9]} 2. c4 {[%clk 0:02:59.4]}
2... g6 {[%clk 0:02:59.1]} 3. Nc3 {[%clk 0:02:59.5]} 3... Bg7 {[%clk 0:02:59.5]}
4. e4 {[%clk 0:03:00]} 4... d6 {[%clk 0:02:59.5]} 5. Nf3 {[%clk 0:03:00.5]} 5...
O-O {[%clk 0:02:59.4]} 6. Be2 {[%clk 0:03:00.4]} 6... e5 {[%clk 0:02:55.4]} 7.
O-O {[%clk 0:02:59.4]} 7... Na6 {[%clk 0:02:53.4]} 8. Be3 {[%clk 0:02:53.1]}
8... Bg4 {[%clk 0:02:49.2]} 9. d5 {[%clk 0:02:48.2]} 9... Nh5 {[%clk 0:02:34.8]}
10. Ne1 {[%clk 0:02:13.3]} 10... Bxe2 {[%clk 0:02:34]} 11. Qxe2 {[%clk
0:02:14.2]} 11... Nf4 {[%clk 0:02:32.5]} 12. Qd1 {[%clk 0:02:09.5]} 12... f5
{[%clk 0:02:31.5]} 13. f3 {[%clk 0:02:01.4]} 13... Nc5 {[%clk 0:02:13]} 14. b4
{[%clk 0:01:46.4]} 14... Nd7 {[%clk 0:02:12.8]} 15. Rc1 {[%clk 0:01:46.4]} 15...
a5 {[%clk 0:02:12.4]} 16. a3 {[%clk 0:01:39.3]} 16... axb4 {[%clk 0:02:12.6]}
17. axb4 {[%clk 0:01:40.2]} 17... Ra3 {[%clk 0:02:11.8]} 18. Kh1 {[%clk
0:01:33.2]} 18... fxe4 {[%clk 0:01:41.3]} 19. fxe4 {[%clk 0:01:19.6]} 19... Nf6
{[%clk 0:01:41.9]} 20. Bg1 {[%clk 0:01:00.3]} 20... Qd7 {[%clk 0:01:28.7]} 21.
Nf3 {[%clk 0:00:45]} 21... Qg4 {[%clk 0:01:26.6]} 22. g3 {[%clk 0:00:38.9]}
22... Rxc3 {[%clk 0:01:08.6]} 23. Rxc3 {[%clk 0:00:37.2]} 23... Nxe4 {[%clk
0:01:09.2]} 24. Rc2 {[%clk 0:00:12.5]} 24... Qh3 {[%clk 0:01:09.3]} 25. gxf4
{[%clk 0:00:09.2]} 25... Ng3# {[%clk 0:01:09]} 0-1